bitfinex-derivatives/quotes_BTCF0:USTF0_20260207
["timestamp","ask_amount","ask_price","bid_price","bid_amount"]
[1770466969032,0.54962477,69459.0,69410.0,0.10076007]
[1770466969331,0.54962477,69459.0,69393.0,0.10076007]
[1770466969530,0.54962477,69459.0,69403.0,0.014424]
[1770466969836,0.54962477,69459.0,69406.0,0.014424]
[1770466970034,0.54962477,69459.0,69393.0,0.10076007]
[1770466970337,0.54962477,69459.0,69407.0,0.014424]
[1770466970633,0.54962477,69459.0,69417.0,0.014421]
[1770466970831,0.1455186,69480.0,69408.0,0.0954044]
[1770466971026,0.55262477,69479.0,69422.0,0.0954044]
[1770466972032,0.55262477,69479.0,69437.0,0.0954044]
[1770466972229,0.55262477,69479.0,69443.0,0.014416]
[1770466972935,0.55262477,69479.0,69439.0,0.014417]
[1770466973132,0.55262477,69479.0,69442.0,0.014416]
[1770466973334,0.55262477,69479.0,69437.0,0.0954044]
[1770466973635,0.55262477,69479.0,69441.0,0.014417]
[1770466973832,0.55262477,69479.0,69444.0,0.014416]
[1770466974230,0.55262477,69499.0,69459.0,0.014413]
[1770466974628,0.55262477,69499.0,69454.0,0.014414]
[1770466974826,0.55262477,69499.0,69440.0,0.014417]
[1770466975129,0.55262477,69479.0,69427.0,0.014419]
[1770466975325,0.007,69452.0,69431.0,0.0002]
[1770466975531,0.55962477,69452.0,69405.0,0.09681222]
[1770466975836,0.55262477,69452.0,69412.0,0.014422]
[1770466976238,0.55262477,69466.0,69425.0,0.09681222]
[1770466976427,0.55262477,69480.0,69443.0,0.014416]
[1770466976632,0.1455186,69490.0,69434.0,0.014418]
[1770466976633,0.55262477,69489.0,69434.0,0.014418]
[1770466976829,0.55262477,69489.0,69427.0,0.10183067]
[1770466977028,0.55262477,69489.0,69447.0,0.014415]
[1770466977237,0.55262477,69489.0,69439.0,0.29008235]
[1770466977533,0.55262477,69489.0,69421.0,0.10925167]
[1770466977730,0.55262477,69489.0,69456.0,0.014413]
[1770466978126,0.55262477,69489.0,69452.0,0.014414]
[1770466978738,0.55262477,69508.0,69447.0,0.014415]
[1770466978926,0.55262477,69508.0,69447.0,0.09400418]
[1770466979130,0.55262477,69508.0,69459.0,0.014413]
[1770466979333,0.55262477,69508.0,69439.0,0.09400418]
[1770466979533,0.55262477,69508.0,69458.0,0.014413]
[1770466979737,0.55262477,69508.0,69458.0,0.10841718]
[1770466980130,0.55262477,69508.0,69458.0,0.09400418]
[1770466981040,0.55262477,69508.0,69460.0,0.014412]
[1770466981537,0.55262477,69528.0,69473.0,0.09709036]
[1770466981733,0.55262477,69528.0,69451.0,0.09709036]
[1770466981934,0.55262477,69528.0,69461.0,0.014412]
[1770466982131,0.55262477,69528.0,69451.0,0.09709036]
[1770466982330,0.55262477,69509.0,69455.0,0.014413]
[1770466982533,0.55262477,69509.0,69446.0,0.014416]
[1770466982733,0.55262477,69509.0,69443.0,0.1086647]
[1770466982934,0.55262477,69509.0,69462.0,0.1230767]
[1770466983134,0.55262477,69509.0,69468.0,0.014411]
[1770466983337,0.55262477,69509.0,69462.0,0.1086647]
[1770466984045,0.55262477,69509.0,69467.0,0.014411]
[1770466984245,0.55262477,69509.0,69474.0,0.01441]
[1770466984441,0.55262477,69509.0,69477.0,0.014409]
[1770466984942,0.55262477,69523.0,69476.0,0.014409]
[1770466985134,0.55262477,69519.0,69446.0,0.014415]
[1770466985335,0.007,69463.0,69441.0,0.00013299]
[1770466986341,0.55262477,69480.0,69441.0,0.00013299]
[1770466988939,0.55262477,69480.0,69415.0,0.12917815]
[1770466989140,0.54022961,69479.0,69415.0,0.12917815]
[1770466989535,0.54022961,69479.0,69435.0,0.014418]
[1770466989938,0.54820689,69477.0,69435.0,0.014418]
[1770466990141,0.54820689,69477.0,69431.0,0.014419]
[1770466990452,0.54820689,69489.0,69448.0,0.014415]
[1770466990750,0.54820689,69489.0,69421.0,0.11881308]
[1770466991048,0.54820689,69473.0,69423.0,0.01442]
[1770466991243,0.54820689,69473.0,69409.0,0.014423]
[1770466991549,0.54820689,69459.0,69407.0,0.11881308]
[1770466991847,0.007,69435.0,69407.0,0.11881308]
[1770466992049,0.007,69435.0,69402.0,0.01458942]
[1770466992447,0.55520689,69435.0,69402.0,0.00016442]
[1770466992647,0.55520689,69435.0,69380.0,0.1269262]
[1770466992952,0.55520689,69435.0,69383.0,0.014429]
[1770466993646,0.54820689,69433.0,69375.0,0.01443]
[1770466993845,0.54820689,69431.0,69378.0,0.014429]
[1770466994151,0.0002,69473.0,69378.0,0.014429]
[1770466994152,0.54820689,69429.0,69392.0,0.014427]
[1770466994358,0.00012053,69428.0,69398.0,0.014425]
[1770466995341,0.14523247,69460.0,69395.0,0.0002]
[1770466995342,0.54820689,69433.0,69400.0,0.014425]
[1770466995537,0.54820689,69433.0,69395.0,0.0002]
[1770466995538,0.54820689,69446.0,69380.0,0.13771452]
[1770466995749,0.54820689,69425.0,69385.0,0.014428]
[1770466995949,0.54820689,69459.0,69398.0,0.007425]
[1770466996341,0.54820689,69459.0,69401.0,0.014425]
[1770466996545,0.54820689,69459.0,69400.0,0.014425]
[1770466996754,0.54820689,69457.0,69400.0,0.014425]
[1770466996944,0.54820689,69455.0,69403.0,0.014424]
[1770466997144,0.54820689,69453.0,69403.0,0.014424]
[1770466997339,0.54820689,69451.0,69392.0,0.13771452]
[1770466997550,0.54820689,69449.0,69390.0,0.014427]
[1770466997750,0.54820689,69447.0,69390.0,0.014427]
[1770466997951,0.54820689,69439.0,69382.0,0.014429]
[1770466998146,0.54820689,69437.0,69379.0,0.13055929]
[1770466998347,0.54820689,69435.0,69366.0,0.13758152]
[1770466998652,0.54820689,69435.0,69378.0,0.014429]
[1770466998836,0.54820689,69416.0,69378.0,0.014429]
[1770466999039,0.54820689,69415.0,69377.0,0.01443]
[1770466999247,0.54820689,69415.0,69373.0,0.014431]
[1770466999539,0.54820689,69413.0,69373.0,0.014431]
[1770466999743,0.54820689,69413.0,69366.0,0.13758152]
[1770466999744,0.54820689,69413.0,69376.0,0.13758152]
[1770466999951,5.471e-05,69412.0,69378.0,0.01443]
[1770467000146,5.471e-05,69412.0,69384.0,0.014428]
[1770467000348,5.471e-05,69412.0,69380.0,0.014429]
[1770467000548,5.471e-05,69412.0,69376.0,0.13758152]
[1770467001446,0.54820689,69419.0,69377.0,0.01443]
[1770467001743,0.54820689,69417.0,69377.0,0.01443]
[1770467001944,0.54820689,69415.0,69377.0,0.01443]
[1770467002153,0.54820689,69413.0,69377.0,0.01443]
[1770467002749,0.54820689,69412.0,69362.0,0.14602456]
[1770467002950,0.14523247,69420.0,69371.0,0.014431]
[1770467002951,0.54820689,69410.0,69371.0,0.014431]
[1770467003144,0.54820689,69408.0,69367.0,0.014432]
[1770467003448,0.54820689,69406.0,69352.0,0.14602456]
[1770467003655,0.54820689,69406.0,69371.0,0.014431]
[1770467004047,0.54820689,69406.0,69364.0,0.14602456]
[1770467004348,0.54820689,69404.0,69364.0,0.14602456]
[1770467004560,0.54820689,69402.0,69364.0,0.14602456]
[1770467004745,0.54820689,69402.0,69350.0,0.00012887]
[1770467004746,0.54820689,69400.0,69359.0,0.014434]
[1770467004953,0.54820689,69398.0,69359.0,0.014434]
[1770467005154,5.471e-05,69397.0,69366.0,0.014432]
[1770467005358,5.471e-05,69396.0,69366.0,0.014432]
[1770467005657,5.471e-05,69395.0,69363.0,0.14151687]
[1770467005843,0.54820689,69398.0,69363.0,0.14151687]
[1770467006551,0.54820689,69407.0,69368.0,0.014432]
[1770467007056,0.54820689,69407.0,69365.0,0.1421288]
[1770467007249,0.54820689,69407.0,69366.0,0.014432]
[1770467007859,0.54820689,69407.0,69378.0,0.29008235]
[1770467008047,0.54820689,69406.0,69378.0,0.29008235]
[1770467008251,0.54820689,69406.0,69365.0,0.1421288]
[1770467008252,0.54820689,69405.0,69365.0,0.1421288]
[1770467008651,0.54820689,69403.0,69353.0,0.14497614]
[1770467008954,0.54820689,69401.0,69353.0,0.14497614]
[1770467009149,0.54820689,69401.0,69368.0,0.014432]
[1770467009457,0.54820689,69401.0,69371.0,0.014431]
[1770467009859,5.471e-05,69400.0,69371.0,0.014431]
[1770467010052,5.471e-05,69399.0,69367.0,0.014432]
[1770467010259,5.471e-05,69399.0,69369.0,0.014431]
[1770467010453,0.54820689,69413.0,69379.0,0.014429]
[1770467011860,0.54820689,69413.0,69372.0,0.014431]
[1770467012158,0.54820689,69413.0,69357.0,0.15144096]
[1770467012456,0.54820689,69413.0,69361.0,0.15560335]
[1770467012660,0.54820689,69413.0,69372.0,0.014431]
[1770467012850,0.54820689,69413.0,69367.0,0.014432]
[1770467013055,0.54820689,69413.0,69366.0,0.014432]
[1770467013360,0.007,69380.0,69366.0,0.014432]
[1770467013656,0.54820689,69398.0,69371.0,0.014431]
[1770467013847,0.54820689,69419.0,69371.0,0.014431]
[1770467014268,0.54820689,69419.0,69369.0,0.014431]
[1770467015057,0.54820689,69419.0,69361.0,0.15560335]
[1770467015252,0.54820689,69419.0,69370.0,0.014431]
[1770467015762,0.54820689,69419.0,69367.0,0.014432]
[1770467015959,0.54820689,69419.0,69369.0,0.014431]
[1770467016655,0.54820689,69419.0,69361.0,0.17003635]
[1770467016858,0.54820689,69419.0,69363.0,0.014433]
[1770467017660,0.54820689,69419.0,69361.0,0.15560335]
[1770467017855,0.54866322,69399.0,69354.0,0.014434]
[1770467018161,0.54866322,69385.0,69351.0,0.014435]
[1770467018360,0.54866322,69398.0,69362.0,0.014433]
[1770467018561,0.54866322,69398.0,69350.0,0.16429902]
[1770467018762,0.54866322,69398.0,69361.0,0.014433]
[1770467018964,0.54866322,69398.0,69350.0,0.16429902]
[1770467019164,0.54866322,69398.0,69357.0,0.014434]
[1770467019363,0.54866322,69398.0,69359.0,0.014433]
[1770467019757,0.54866322,69398.0,69350.0,0.16429902]
[1770467020257,0.54866322,69398.0,69358.0,0.014434]
[1770467020453,0.54866322,69398.0,69350.0,0.16429902]
[1770467020658,0.54866322,69398.0,69354.0,0.014434]
[1770467021265,0.54866322,69398.0,69356.0,0.014434]
[1770467021564,0.54866322,69398.0,69353.0,0.014435]
[1770467021865,0.54866322,69398.0,69350.0,0.17873402]
[1770467022065,0.54866322,69398.0,69350.0,0.16429902]
[1770467022268,0.54866322,69398.0,69354.0,0.014435]
[1770467022455,0.54866322,69398.0,69356.0,0.014434]
[1770467022659,0.54866322,69398.0,69353.0,0.014435]
[1770467023054,0.54866322,69398.0,69366.0,0.29008235]
[1770467023254,0.54866322,69398.0,69353.0,0.014435]
[1770467023660,0.54866322,69384.0,69350.0,0.17873402]
[1770467024061,0.54866322,69384.0,69350.0,0.00012887]
[1770467024659,0.54866322,69384.0,69335.0,0.014439]
[1770467025165,0.54866322,69379.0,69327.0,0.16191776]
[1770467025364,0.54866322,69379.0,69331.0,0.014439]
[1770467025569,0.54866322,69379.0,69325.0,0.014441]
[1770467025759,0.54866322,69377.0,69328.0,0.01444]
[1770467025958,0.54866322,69375.0,69324.0,0.014441]
[1770467026166,0.54866322,69373.0,69324.0,0.014441]
[1770467026360,0.007,69351.0,69324.0,0.014441]
[1770467026569,0.007,69351.0,69299.0,0.014646]
[1770467026570,0.54879209,69350.0,69309.0,0.16443958]
[1770467026761,0.00012887,69349.0,69326.0,0.01444]
[1770467026962,0.54866322,69373.0,69340.0,0.014437]
[1770467027167,0.36496641,69373.0,69339.0,0.3552504]
[1770467027362,0.54866322,69399.0,69339.0,0.3552504]
[1770467027568,0.54866322,69399.0,69342.0,0.014437]
[1770467028065,0.54866322,69399.0,69345.0,0.014436]
[1770467028265,0.54866322,69399.0,69349.0,0.3552504]
[1770467028465,0.54866322,69399.0,69352.0,0.34465658]
[1770467028665,0.54866322,69399.0,69359.0,0.014434]
[1770467028871,0.54866322,69399.0,69357.0,0.014434]
[1770467029174,0.54866322,69436.0,69360.0,0.14574527]
[1770467029369,0.54866322,69436.0,69386.0,0.014428]
[1770467029566,0.54866322,69436.0,69386.0,0.35908458]
[1770467029767,0.54866322,69436.0,69392.0,0.34465658]
[1770467030271,0.54866322,69436.0,69382.0,0.14728832]
[1770467030272,0.54866322,69468.0,69393.0,0.014426]
[1770467030469,0.54866322,69468.0,69392.0,0.014427]
[1770467030660,0.54866322,69468.0,69395.0,0.014426]
[1770467030862,0.54866322,69404.0,69357.0,0.16457775]
[1770467031061,0.54866322,69404.0,69351.0,0.44800982]
[1770467031374,0.54866322,69404.0,69332.0,0.014439]
[1770467031375,0.54866322,69404.0,69348.0,0.014436]
[1770467031566,0.54866322,69404.0,69343.0,0.44800982]
[1770467031766,0.54866322,69399.0,69343.0,0.44800982]
[1770467032070,0.007,69358.0,69343.0,0.44800982]
[1770467032474,0.54866322,69378.0,69343.0,0.44800982]
[1770467032664,0.007,69377.0,69343.0,0.44800982]
[1770467033069,0.007,69377.0,69326.0,0.0002]
[1770467033070,0.54866322,69375.0,69329.0,0.44681778]
[1770467033262,0.54866322,69375.0,69342.0,0.014437]
[1770467033471,0.007,69375.0,69349.0,0.014436]
[1770467034473,0.007,69375.0,69352.0,0.014435]
[1770467034660,0.007,69374.0,69342.0,0.014437]
[1770467034865,0.54866322,69386.0,69345.0,0.014436]
[1770467035073,0.54866322,69386.0,69341.0,0.44691908]
[1770467035074,0.54866322,69386.0,69348.0,0.014436]
[1770467035271,0.54866322,69384.0,69344.0,0.014437]
[1770467035768,0.007,69383.0,69344.0,0.014437]
[1770467035974,0.55566322,69383.0,69341.0,0.0001013]
[1770467036165,0.54866322,69381.0,69341.0,0.0001013]
[1770467036568,0.54866322,69379.0,69341.0,0.0001013]
[1770467037070,0.007,69378.0,69344.0,0.014437]
[1770467037472,0.007,69377.0,69343.0,0.014437]
[1770467037673,0.55566322,69378.0,69341.0,0.44527516]
[1770467037866,0.54866322,69378.0,69341.0,0.44527516]
[1770467038069,0.54866322,69376.0,69341.0,0.44527516]
[1770467038472,0.007,69375.0,69341.0,0.44527516]
[1770467038875,0.54866322,69373.0,69341.0,0.0001013]
[1770467039375,0.007,69372.0,69341.0,0.0001013]
[1770467039868,0.007,69371.0,69341.0,0.0001013]
[1770467040069,0.007,69372.0,69341.0,0.0001013]
[1770467040274,0.55566322,69372.0,69341.0,0.0001013]
[1770467040575,0.007,69371.0,69344.0,0.44580197]
[1770467040765,0.54866322,69385.0,69345.0,0.014436]
[1770467040964,0.007,69384.0,69345.0,0.45950117]
[1770467041178,0.55566322,69384.0,69345.0,0.45950117]
[1770467041479,0.54866322,69382.0,69345.0,0.45950117]
[1770467041972,0.54866322,69380.0,69345.0,0.45950117]
[1770467042167,0.54866322,69378.0,69342.0,0.014437]
[1770467042566,0.55566322,69377.0,69342.0,0.014437]
[1770467042767,0.54866322,69377.0,69342.0,0.014437]
[1770467042979,0.007,69376.0,69342.0,0.014437]
[1770467043375,0.54866322,69377.0,69341.0,0.0001013]
[1770467043376,0.55566322,69375.0,69341.0,0.0001013]
[1770467043674,0.54866322,69375.0,69342.0,0.014437]
[1770467043879,0.14582119,69390.0,69341.0,0.0001013]
[1770467043880,0.54866322,69373.0,69341.0,0.0001013]
[1770467044374,0.007,69372.0,69345.0,0.44465016]
[1770467044681,0.54866322,69385.0,69346.0,0.014436]
[1770467044972,0.54866322,69383.0,69349.0,0.014436]
[1770467045179,0.54866322,69383.0,69341.0,0.0001013]
[1770467045380,0.007,69382.0,69352.0,0.44614299]
[1770467045877,0.007,69381.0,69356.0,0.014434]
[1770467046077,0.54476011,69394.0,69350.0,0.014435]
[1770467046279,0.54476011,69389.0,69341.0,0.0001013]
[1770467046774,0.54476011,69387.0,69344.0,0.43537877]
[1770467046980,0.54476011,69387.0,69357.0,0.014434]
[1770467047281,0.54476011,69387.0,69344.0,0.44981577]
[1770467047282,0.54476011,69385.0,69345.0,0.014436]
[1770467047481,0.54476011,69385.0,69347.0,0.014436]
[1770467047780,0.54476011,69383.0,69344.0,0.43537877]
[1770467047980,0.007,69382.0,69352.0,0.014435]
[1770467048380,0.007,69382.0,69341.0,0.0001013]
[1770467048381,0.55176011,69381.0,69341.0,0.0001013]
[1770467048574,0.54476011,69381.0,69341.0,0.0001013]
[1770467048889,0.007,69345.0,69326.0,0.01444]
[1770467049576,0.007,69345.0,69321.0,0.44981977]
[1770467049779,0.007,69345.0,69299.0,0.014446]
[1770467049780,0.0071013,69344.0,69299.0,0.44036761]
[1770467049979,0.0071013,69344.0,69313.0,0.014443]
[1770467050177,0.007,69343.0,69313.0,0.007443]
[1770467050374,0.0001013,69342.0,69313.0,0.007443]
[1770467050579,0.0071013,69342.0,69316.0,0.014443]
[1770467050776,0.0071013,69342.0,69310.0,0.44385245]
[1770467050777,0.007,69341.0,69320.0,0.014442]
[1770467050982,0.007,69341.0,69296.0,0.14692268]
[1770467050983,0.52677802,69340.0,69308.0,0.014444]
[1770467051180,0.53377802,69340.0,69316.0,0.014442]
[1770467051376,0.0071013,69339.0,69315.0,0.014443]
[1770467051679,0.0001013,69338.0,69317.0,0.014442]
[1770467051879,0.0001013,69338.0,69319.0,0.014442]
[1770467052070,0.0001013,69338.0,69321.0,0.014441]
[1770467052275,0.0001013,69338.0,69327.0,0.45482697]
[1770467052474,0.0071013,69338.0,69313.0,0.44385245]
[1770467053178,0.0071013,69338.0,69320.0,0.014442]
[1770467053578,0.0071013,69338.0,69315.0,0.014443]
[1770467053785,0.007,69337.0,69297.0,0.44063393]
[1770467053981,0.52687932,69336.0,69297.0,0.44063393]
[1770467054286,0.52687932,69336.0,69290.0,0.0002]
[1770467054287,0.007,69314.0,69290.0,0.0002]
[1770467054587,0.0001013,69313.0,69290.0,0.0002]
[1770467054882,0.0001013,69312.0,69291.0,0.014448]
[1770467055079,0.0001013,69312.0,69291.0,0.44190348]
[1770467055280,0.52677802,69355.0,69292.0,0.014448]
[1770467055472,0.52677802,69355.0,69318.0,0.014442]
[1770467056286,0.52677802,69355.0,69317.0,0.014442]
[1770467057383,0.52677802,69355.0,69318.0,0.44336278]
[1770467059084,0.52677802,69355.0,69320.0,0.014442]
[1770467059685,0.52677802,69355.0,69318.0,0.42892078]
[1770467059888,0.52677802,69355.0,69319.0,0.014442]
[1770467060181,0.52677802,69355.0,69300.0,0.43137603]
[1770467060382,0.52677802,69355.0,69311.0,0.44581903]
[1770467060576,0.52677802,69342.0,69311.0,0.43137603]
[1770467060781,0.52677802,69359.0,69320.0,0.014442]
[1770467060988,0.52677802,69359.0,69320.0,0.007442]
[1770467061484,0.52677802,69379.0,69328.0,0.42397007]
[1770467061893,0.52677802,69379.0,69337.0,0.42397007]
[1770467062076,0.52677802,69379.0,69341.0,0.014437]
[1770467062277,0.52677802,69379.0,69338.0,0.42397007]
[1770467062588,0.52677802,69379.0,69323.0,0.42456477]
[1770467063392,0.52677802,69379.0,69324.0,0.014441]
[1770467063592,0.52677802,69379.0,69330.0,0.014439]
[1770467063792,0.52677802,69379.0,69324.0,0.42456477]
[1770467063992,0.52677802,69379.0,69333.0,0.43900377]
[1770467064292,0.52677802,69379.0,69336.0,0.014438]
[1770467064891,0.52677802,69379.0,69342.0,0.42254072]
[1770467065081,0.52677802,69379.0,69343.0,0.43697772]
[1770467065486,0.52677802,69379.0,69350.0,0.014435]
[1770467065687,0.52677802,69399.0,69350.0,0.43697572]
[1770467065895,0.52677802,69399.0,69350.0,0.42254072]
[1770467066694,0.007,69351.0,69341.0,0.42276747]
[1770467067086,0.52677802,69381.0,69341.0,0.41576747]
[1770467067289,0.52677802,69379.0,69343.0,0.45482697]
[1770467067786,0.52677802,69379.0,69304.0,0.014445]
[1770467067787,0.52677802,69377.0,69325.0,0.014441]
[1770467067988,0.52677802,69359.0,69301.0,0.014446]
[1770467068188,0.52677802,69359.0,69304.0,0.014445]
[1770467068393,0.007,69319.0,69295.0,0.41887447]
[1770467068596,0.52677802,69337.0,69305.0,0.43331947]
[1770467068900,0.53377802,69336.0,69296.0,0.014447]
[1770467069089,0.52677802,69336.0,69301.0,0.41187447]
[1770467069397,0.007,69335.0,69305.0,0.41187447]
[1770467069586,0.52677802,69347.0,69308.0,0.014444]
[1770467069792,0.52677802,69339.0,69295.0,0.014447]
[1770467070089,0.52677802,69339.0,69285.0,0.01536319]
[1770467070288,0.007,69338.0,69308.0,0.41187447]
[1770467070492,0.52677802,69341.0,69308.0,0.41187447]
[1770467070688,0.007,69340.0,69308.0,0.41187447]
[1770467070888,0.007,69340.0,69308.0,0.42631847]
[1770467071089,0.007,69339.0,69308.0,0.42631847]
[1770467071290,0.007,69340.0,69308.0,0.41187447]
[1770467071583,0.007,69340.0,69306.0,0.40322752]
[1770467071584,0.53377802,69340.0,69306.0,0.40322752]
[1770467072098,0.52677802,69338.0,69293.0,0.014447]
[1770467072284,0.52677802,69338.0,69296.0,0.40322752]
[1770467072592,0.007,69337.0,69303.0,0.40322752]
[1770467072983,0.007,69336.0,69303.0,0.40322752]
[1770467073188,0.007,69337.0,69303.0,0.40322752]
[1770467073585,0.007,69336.0,69303.0,0.40322752]
[1770467073891,0.52677802,69335.0,69289.0,0.014448]
[1770467074088,0.007,69304.0,69289.0,0.014448]
[1770467074300,0.007,69304.0,69291.0,0.014448]
[1770467074493,0.52677802,69325.0,69297.0,0.014446]
[1770467074796,0.007,69324.0,69297.0,0.39575221]
[1770467075000,0.52677802,69336.0,69297.0,0.41019821]
[1770467075188,0.007,69335.0,69300.0,0.014446]
[1770467075499,0.52677802,69334.0,69288.0,0.00010372]
[1770467075792,0.53377802,69334.0,69288.0,0.00010372]
[1770467075990,0.54710864,69332.0,69288.0,0.00010372]
[1770467076190,0.54710864,69319.0,69288.0,0.00010372]
[1770467076691,0.54710864,69317.0,69288.0,0.00010372]
[1770467076887,0.54710864,69317.0,69257.0,0.072276]
[1770467076888,0.54710864,69317.0,69259.0,0.391168]
[1770467077088,0.007,69349.0,69257.0,0.014455]
[1770467077089,0.54710864,69309.0,69257.0,0.014455]
[1770467077290,0.54710864,69309.0,69254.0,0.40663491]
[1770467077596,0.54710864,69307.0,69262.0,0.007454]
[1770467077987,0.55071105,69342.0,69239.0,0.072295]
[1770467077988,0.54710864,69305.0,69248.0,0.014457]
[1770467078197,0.54710864,69305.0,69239.0,0.39963491]
[1770467078198,0.54710864,69303.0,69251.0,0.014456]
[1770467078396,0.54710864,69301.0,69251.0,0.014456]
[1770467078690,0.54710864,69299.0,69239.0,0.39963491]
[1770467078895,0.54710864,69289.0,69236.0,0.014459]
[1770467079093,0.54710864,69268.0,69239.0,0.014458]
[1770467079397,0.00010372,69267.0,69242.0,0.014458]
[1770467079599,0.00010372,69267.0,69237.0,0.40349337]
[1770467079798,0.007,69266.0,69242.0,0.014458]
[1770467079990,0.007,69266.0,69243.0,0.40349337]
[1770467080194,0.54710864,69264.0,69228.0,0.00016577]
[1770467080398,0.54710864,69264.0,69231.0,0.01446]
[1770467080697,0.54710864,69264.0,69228.0,0.00016577]
[1770467080698,0.007,69263.0,69235.0,0.014459]
[1770467080894,0.00010372,69262.0,69235.0,0.014459]
[1770467081194,0.00010372,69261.0,69229.0,0.37178579]
[1770467081408,0.00010372,69260.0,69229.0,0.37178579]
[1770467081702,0.00010372,69259.0,69229.0,0.37178579]
[1770467081999,0.00710372,69259.0,69230.0,0.01446]
[1770467082201,0.007,69258.0,69230.0,0.01446]
[1770467082596,0.007,69257.0,69230.0,0.01446]
[1770467082897,0.00010372,69256.0,69235.0,0.39498049]
[1770467083302,0.007,69255.0,69235.0,0.39498049]
[1770467083600,0.007,69255.0,69228.0,0.00016577]
[1770467083793,0.007,69254.0,69228.0,0.01462677]
[1770467083999,0.00010372,69253.0,69228.0,0.00016577]
[1770467084199,0.00010372,69253.0,69229.0,0.014461]
[1770467084200,0.007,69252.0,69229.0,0.014461]
[1770467084594,0.007,69251.0,69229.0,0.014461]
[1770467084795,0.00010372,69253.0,69232.0,0.39752767]
[1770467084796,0.007,69252.0,69232.0,0.39752767]
[1770467084989,0.007,69252.0,69236.0,0.38306767]
[1770467085197,0.007,69252.0,69228.0,0.00016577]
[1770467085398,0.007,69251.0,69229.0,0.014461]
[1770467085704,0.007,69252.0,69228.0,0.38323344]
[1770467085998,0.00010372,69251.0,69228.0,0.00016577]
[1770467086205,0.00710372,69251.0,69228.0,0.00016577]
[1770467086404,0.007,69250.0,69228.0,0.00016577]
[1770467086703,0.00010372,69249.0,69228.0,0.00016577]
[1770467086906,0.00710372,69249.0,69228.0,0.00016577]
[1770467087407,0.54710864,69299.0,69244.0,0.37549055]
[1770467087605,0.54710864,69299.0,69245.0,0.014457]
[1770467087807,0.54710864,69299.0,69228.0,0.00016577]
[1770467087808,0.54710864,69299.0,69246.0,0.37549055]
[1770467088107,0.54710864,69299.0,69241.0,0.072293]
[1770467088108,0.54710864,69299.0,69260.0,0.37549055]
[1770467088506,0.54710864,69299.0,69249.0,0.014456]
[1770467088698,0.54710864,69299.0,69243.0,0.37387228]
[1770467088699,0.54710864,69299.0,69252.0,0.014456]
[1770467089001,0.54710864,69299.0,69243.0,0.37387228]
[1770467089002,0.54710864,69299.0,69264.0,0.014453]
[1770467089609,0.54710864,69299.0,69260.0,0.014454]
[1770467089806,0.54710864,69299.0,69247.0,0.014457]
[1770467089996,0.54710864,69299.0,69243.0,0.37387228]
[1770467090509,0.54710864,69299.0,69243.0,0.38833028]
[1770467090910,0.54710864,69299.0,69236.0,0.014459]
[1770467091203,0.54710864,69299.0,69241.0,0.014458]
[1770467091408,0.54710864,69299.0,69231.0,0.381805]
[1770467091409,0.54710864,69299.0,69235.0,0.396064]
[1770467091608,0.54710864,69299.0,69244.0,0.014458]
[1770467092004,0.54710864,69299.0,69235.0,0.381605]
[1770467092005,0.54710864,69299.0,69252.0,0.014456]
[1770467092404,0.54710864,69299.0,69248.0,0.396062]
[1770467092607,0.54710864,69299.0,69249.0,0.014457]
[1770467093206,0.54710864,69299.0,69255.0,0.39383041]
[1770467093505,0.54710864,69299.0,69257.0,0.014455]
[1770467093710,0.54710864,69299.0,69259.0,0.014454]
[1770467093906,0.54710864,69299.0,69238.0,0.39383041]
[1770467094114,0.54710864,69299.0,69253.0,0.014456]
[1770467094309,0.54710864,69299.0,69251.0,0.39383041]
[1770467094506,0.54710864,69299.0,69255.0,0.014455]
[1770467094907,0.54710864,69299.0,69257.0,0.014455]
[1770467095103,0.54710864,69299.0,69234.0,0.39324011]
[1770467095299,0.54710864,69279.0,69247.0,0.014457]
[1770467095507,0.54710864,69279.0,69234.0,0.39324011]
[1770467095699,0.55071105,69333.0,69250.0,0.39324011]
[1770467095700,0.54710864,69291.0,69250.0,0.39324011]
[1770467096208,0.54710864,69291.0,69258.0,0.014454]
[1770467096615,0.54710864,69291.0,69258.0,0.4046034]
[1770467096808,0.54710864,69291.0,69258.0,0.3901494]
[1770467097015,0.54710864,69303.0,69265.0,0.3901494]
[1770467097411,0.54710864,69339.0,69277.0,0.3901494]
[1770467097711,0.54710864,69339.0,69289.0,0.014448]
[1770467097914,0.54710864,69339.0,69284.0,0.3901494]
[1770467098101,0.54710864,69339.0,69290.0,0.3901494]
[1770467098310,0.54710864,69339.0,69300.0,0.3901494]
[1770467098510,0.54710864,69339.0,69300.0,0.4045954]
[1770467098709,0.54710864,69339.0,69308.0,0.014444]
[1770467099012,0.54710864,69339.0,69305.0,0.38204301]
[1770467099212,0.54710864,69339.0,69297.0,0.014446]
[1770467099611,0.54710864,69339.0,69293.0,0.38204301]
[1770467099812,0.54710864,69339.0,69278.0,0.38204301]
[1770467100015,0.54710864,69339.0,69284.0,0.014449]
[1770467100314,0.54710864,69329.0,69278.0,0.38204301]
[1770467100516,0.54710864,69329.0,69271.0,0.014452]
[1770467100812,0.54710864,69329.0,69268.0,0.38881897]
[1770467101018,0.54710864,69329.0,69286.0,0.40326797]
[1770467101321,0.54710864,69329.0,69263.0,0.014453]
[1770467101322,0.54710864,69329.0,69292.0,0.38881897]
[1770467101523,0.54710864,69329.0,69296.0,0.38881897]
[1770467101816,0.54710864,69329.0,69275.0,0.38881897]
[1770467102314,0.54710864,69329.0,69253.0,0.014456]
[1770467102315,0.54710864,69329.0,69263.0,0.014454]
[1770467102515,0.54710864,69329.0,69256.0,0.3931767]
[1770467102715,0.54710864,69329.0,69255.0,0.014455]
[1770467102716,0.54710864,69329.0,69268.0,0.014452]
[1770467103024,0.54710864,69329.0,69264.0,0.3931767]
[1770467103318,0.54710864,69329.0,69268.0,0.014452]
[1770467104115,0.54710864,69329.0,69264.0,0.4076297]
[1770467104324,0.54710864,69309.0,69264.0,0.4076297]
[1770467105017,0.54710864,69309.0,69267.0,0.014453]
[1770467105917,0.54710864,69309.0,69262.0,0.014454]
[1770467106117,0.54710864,69309.0,69243.0,0.014458]
[1770467106118,0.55663202,69289.0,69243.0,0.39185094]
[1770467106320,0.007,69265.0,69243.0,0.39185094]
[1770467107025,0.56363202,69265.0,69231.0,0.39163823]
[1770467108020,0.56363202,69265.0,69218.0,0.39163823]
[1770467110015,0.56363202,69265.0,69228.0,0.37804024]
[1770467110414,0.56363202,69265.0,69232.0,0.01446]
[1770467110621,0.56363202,69265.0,69230.0,0.38345562]